bitfinex/quotes_ETHUSD_20250924
["timestamp","ask_amount","ask_price","bid_price","bid_amount"]
[1758745391144,13.97847404,4170.2,4170.1,0.6613]
[1758745391553,13.97847404,4170.2,4170.1,3.05932402]
[1758745392217,13.97847404,4170.2,4170.1,0.6613]
[1758745392416,13.97847404,4170.2,4170.1,3.05932402]
[1758745392615,0.37600783,4170.2,4170.1,3.05932402]
[1758745392844,0.37600783,4170.2,4170.1,17.55932402]
[1758745395649,0.37600783,4170.2,4170.1,16.90002402]
[1758745396226,0.37600783,4170.2,4170.1,17.14002402]
[1758745396546,0.37600783,4170.2,4170.1,17.57262402]
[1758745397130,0.37600783,4170.2,4170.1,15.1746]
[1758745398648,0.37600783,4170.2,4170.1,14.502]
[1758745400155,0.37600783,4170.2,4170.1,14.9346]
[1758745401053,0.37600783,4170.2,4170.1,14.502]
[1758745401553,0.37600783,4170.2,4170.1,0.002]
[1758745402739,0.37600783,4170.2,4170.1,0.6746]
[1758745403968,0.37600783,4170.2,4170.1,3.07262402]
[1758745404280,0.37600783,4170.2,4170.1,0.6746]
[1758745404979,0.37600783,4170.2,4170.1,3.07262402]
[1758745405141,0.37600783,4170.2,4170.1,17.57262402]
[1758745405343,0.37600783,4170.2,4170.1,15.1746]
[1758745405544,0.37600783,4170.2,4170.1,17.57262402]
[1758745405880,0.001,4170.7,4170.6,2.39773653]
[1758745406082,0.001,4171.2,4170.7,2.39767904]
[1758745406267,0.001,4171.2,4171.1,3.18944911]
[1758745406580,0.001,4171.2,4171.1,7.28964911]
[1758745406765,0.001,4171.2,4171.1,21.78964911]
[1758745406941,0.001,4171.2,4171.1,22.46224911]
[1758745417507,0.001,4171.2,4171.1,22.22224911]
[1758745417713,0.001,4171.2,4171.1,22.46224911]
[1758745419300,0.001,4171.2,4171.1,23.00450383]
[1758745425120,0.001,4171.2,4171.1,20.0648]
[1758745425322,0.001,4171.2,4171.1,22.46224911]
[1758745432445,0.001,4171.2,4171.1,17.80864911]
[1758745432651,0.001,4171.2,4171.1,21.78864911]
[1758745432945,0.001,4171.2,4171.1,17.80864911]
[1758745433170,0.001,4171.2,4171.1,22.49584911]
[1758745437751,0.001,4171.2,4171.1,21.78864911]
[1758745438169,0.001,4171.2,4171.1,22.49584911]
[1758745439272,0.001,4171.2,4171.1,22.03474911]
[1758745439569,0.001,4171.2,4171.1,21.78864911]
[1758745440349,0.001,4171.2,4171.1,22.02924911]
[1758745440550,0.001,4171.2,4171.1,21.78864911]
[1758745441173,0.001,4171.2,4171.1,17.80864911]
[1758745441373,0.001,4171.2,4171.1,22.50094911]
[1758745442643,0.001,4171.2,4171.1,14.6192]
[1758745442850,0.003,4171.2,4171.1,14.5]
[1758745443575,0.006,4171.2,4170.9,3.98]
[1758745443760,8.20647883,4171.0,4170.8,0.1192]
[1758745443962,8.20647883,4171.0,4170.9,14.5]
[1758745443963,8.20847883,4171.0,4170.9,14.5]
[1758745444168,8.20847883,4171.0,4170.7,3.98]
[1758745444500,0.005,4170.9,4170.7,3.98]
[1758745444701,0.003,4170.9,4170.8,14.5]
[1758745445295,8.20647883,4171.0,4170.8,14.5]
[1758745445666,0.002,4170.9,4170.8,14.5]
[1758745445867,8.20647883,4171.0,4170.8,14.5]
[1758745446096,4.0992,4171.1,4170.8,14.5]
[1758745446402,8.20647883,4170.9,4170.8,14.5]
[1758745450908,12.30767883,4170.9,4170.6,0.002]
[1758745451195,12.30567883,4170.9,4170.6,0.002]
[1758745451395,12.30767883,4170.9,4170.6,0.002]
[1758745451596,12.30567883,4170.9,4170.6,0.002]
[1758745451973,11.20647883,4170.7,4170.6,0.002]
[1758745452133,15.18647883,4170.7,4170.6,0.002]
[1758745452300,17.58915787,4170.7,4170.6,0.002]
[1758745456140,17.58615787,4170.7,4170.6,0.002]
[1758745458240,17.58415787,4170.7,4170.6,0.002]
[1758745459509,6.98,4170.7,4170.6,0.002]
[1758745459858,0.001,4171.2,4170.8,0.792]
[1758745460017,0.001,4171.2,4171.1,2.51664911]
[1758745460352,0.001,4171.2,4171.1,17.01664911]
[1758745460516,0.001,4171.2,4171.1,17.72574911]
[1758745460714,0.001,4171.2,4171.1,15.3283]
[1758745461043,0.001,4171.2,4171.1,17.72574911]
[1758745461216,0.001,4171.2,4171.1,20.0482456]
[1758745462762,0.001,4171.2,4171.1,17.65079649]
[1758745463464,0.001,4171.2,4171.1,20.0482456]
[1758745465246,0.001,4171.2,4171.1,24.0302456]
[1758745465547,0.001,4171.2,4171.1,21.63279649]
[1758745466653,0.001,4171.2,4171.1,15.3283]
[1758745467012,0.001,4171.2,4171.1,19.3093]
[1758745467889,0.001,4171.2,4171.1,14.6192]
[1758745468177,0.001,4171.2,4171.1,15.3283]
[1758745469996,0.001,4171.2,4171.1,14.5]
[1758745470586,0.001,4171.2,4170.9,4.2168]
[1758745470791,8.20647883,4171.0,4170.9,4.6901]
[1758745470995,8.20647883,4171.0,4170.9,19.1901]
[1758745474197,8.20647883,4171.0,4170.9,18.481]
[1758745475498,8.20647883,4171.0,4170.9,19.1901]
[1758745476981,8.20647883,4171.0,4170.9,18.481]
[1758745478910,8.20647883,4171.0,4170.9,18.7168]
[1758745479075,8.20647883,4171.0,4170.9,18.481]
[1758745480976,8.20647883,4171.0,4170.9,14.5]
[1758745481179,8.20647883,4171.0,4170.9,18.48]
[1758745481873,8.20747883,4171.0,4170.9,18.48]
[1758745482078,8.20747883,4171.0,4170.9,4.2272]
[1758745482514,8.20747883,4171.0,4170.9,18.7272]
[1758745483686,8.20747883,4171.0,4170.9,3.98]
[1758745484281,8.20747883,4171.0,4170.8,14.502]
[1758745484481,8.32667883,4171.0,4170.8,18.482]
[1758745484981,8.32667883,4171.0,4170.8,18.7292]
[1758745485480,8.32667883,4171.0,4170.8,19.1701]
[1758745489619,8.32667883,4171.0,4170.8,0.002]
[1758745489834,8.20647883,4170.9,4170.8,0.002]
[1758745490033,8.20847883,4170.9,4170.8,0.002]
[1758745490238,8.30757883,4170.9,4170.8,0.002]
[1758745490406,8.20647883,4170.9,4170.8,0.002]
[1758745490728,13.7051429,4170.9,4170.8,0.002]
[1758745491314,5.39765508,4170.8,4170.6,0.002]
[1758745491629,15.18647883,4170.7,4170.6,0.002]
[1758745491947,17.58415787,4170.7,4170.6,0.002]
[1758745492143,17.58415787,4170.7,4170.3,0.002]
[1758745492144,2.39782543,4170.5,4170.3,0.002]
[1758745492325,17.58433035,4170.4,4170.3,0.002]
[1758745492497,17.58633035,4170.4,4170.3,0.002]
[1758745493415,17.58433035,4170.4,4170.3,0.002]
[1758745493597,15.18847883,4170.4,4170.3,0.002]
[1758745493998,15.18647883,4170.4,4170.3,0.002]
[1758745495732,17.58433035,4170.4,4170.3,0.002]
[1758745497336,15.18647883,4170.4,4170.3,0.002]
[1758745498727,11.20647883,4170.4,4170.3,0.002]
[1758745498933,15.18647883,4170.4,4170.3,0.6901]
[1758745500702,16.4836357,4170.4,4170.3,0.6901]
[1758745502204,16.4836357,4170.4,4170.3,0.2492]
[1758745503827,16.4836357,4170.4,4170.3,0.717]
[1758745505405,16.4836357,4170.4,4170.3,0.002]
[1758745506710,16.4836357,4170.4,4170.3,0.2451]
[1758745507549,16.4836357,4170.4,4170.3,0.002]
[1758745507749,3.1192,4170.3,4169.8,0.002]
[1758745507937,11.90171723,4170.0,4169.8,0.002]
[1758745508114,15.88271723,4170.0,4169.8,0.002]
[1758745508323,0.09616922,4170.5,4170.4,2.39785152]
[1758745508509,0.09616922,4170.5,4170.4,0.95068515]
[1758745508715,9.5036357,4170.6,4170.4,0.7109]
[1758745508942,9.5036357,4170.6,4170.5,0.7109]
[1758745509242,9.5036357,4170.6,4170.5,17.60869402]
[1758745509415,9.5036357,4170.6,4170.5,15.2109]
[1758745509615,9.5036357,4170.6,4170.5,17.60869402]
[1758745510120,9.5036357,4170.6,4170.5,15.2109]
[1758745510319,9.5036357,4170.6,4170.1,0.1192]
[1758745510549,9.5036357,4170.2,4170.1,2.51717078]
[1758745510950,9.5036357,4170.2,4170.1,17.01717078]
[1758745511260,9.5036357,4170.2,4170.1,17.72807078]
[1758745513868,9.5036357,4170.2,4170.1,3.22807078]
[1758745514365,9.5036357,4170.2,4170.1,17.72807078]
[1758745517452,9.5036357,4170.2,4170.1,3.22807078]
[1758745517886,9.5036357,4170.2,4170.1,17.72807078]
[1758745519098,0.37598693,4170.4,4170.3,2.39790902]
[1758745519635,0.37598693,4170.4,4170.3,7.17080902]
[1758745519799,0.37598693,4170.4,4170.3,7.96280902]
[1758745521483,0.37598693,4170.4,4170.3,22.46280902]
[1758745530207,0.37598693,4170.4,4170.3,21.79010902]
[1758745530406,9.87962263,4170.4,4170.3,20.99910902]
[1758745531311,9.87962263,4170.4,4170.3,21.23130902]
[1758745531813,9.87962263,4170.4,4170.3,21.67180902]
[1758745532601,9.87962263,4170.4,4170.3,20.99910902]
[1758745533006,9.87962263,4170.4,4170.3,21.23130902]
[1758745533615,9.87962263,4170.4,4170.3,21.67180902]
[1758745533813,9.87962263,4170.4,4170.3,20.99910902]
[1758745535124,9.87962263,4170.4,4170.3,21.23130902]
[1758745535721,9.88062263,4170.4,4170.3,21.23130902]
[1758745538320,9.88062263,4170.4,4170.3,20.99910902]
[1758745540351,9.88062263,4170.4,4170.3,20.99810902]
[1758745541043,9.88062263,4170.4,4170.3,17.01710902]
[1758745541247,9.88062263,4170.4,4170.3,20.99810902]
[1758745544138,9.88062263,4170.4,4170.3,6.49810902]
[1758745544750,9.88062263,4170.4,4170.3,20.99810902]
[1758745547023,9.88062263,4170.4,4170.3,20.87890902]
[1758745547663,9.88062263,4170.4,4170.3,6.37890902]
[1758745548155,9.88062263,4170.4,4170.3,20.87890902]
[1758745549253,0.37698693,4170.4,4170.3,20.87890902]
[1758745549433,0.37698693,4170.4,4170.3,21.54750902]
[1758745550542,0.37698693,4170.4,4170.3,22.33950902]
[1758745550747,0.37698693,4170.4,4170.3,24.84999517]
[1758745551053,0.001,4170.4,4170.3,24.84999517]
[1758745551263,0.001,4170.4,4170.3,10.34999517]
[1758745551460,0.001,4170.4,4170.3,7.95870902]
[1758745551663,0.001,4170.4,4170.3,22.45870902]
[1758745561088,0.001,4170.4,4170.3,21.79010902]
[1758745561292,0.001,4170.4,4170.3,22.46770902]
[1758745578213,0.001,4170.4,4170.3,22.46770902]
[1758745579194,0.001,4170.4,4170.3,21.79010902]
[1758745579598,0.001,4170.4,4170.3,22.02330902]
[1758745579911,0.001,4170.4,4170.3,22.46340902]
[1758745580104,0.001,4170.4,4170.3,17.01710902]
[1758745580318,0.001,4170.4,4170.3,6.37790902]
[1758745580677,0.1021,4170.4,4170.3,20.87790902]
[1758745581112,0.003,4170.4,4170.3,20.87790902]
[1758745582076,0.001,4170.4,4170.3,20.87790902]
[1758745582476,0.003,4170.4,4170.3,20.87790902]
[1758745582677,0.1021,4170.4,4170.3,20.87790902]
[1758745583810,0.003,4170.4,4170.3,6.37790902]
[1758745584115,0.001,4170.4,4170.3,6.37790902]
[1758745584416,0.001,4170.4,4170.3,20.87790902]
[1758745587283,0.001,4170.4,4170.3,6.37790902]
[1758745587482,0.001,4170.4,4170.3,6.61110902]
[1758745587884,0.001,4170.4,4170.3,21.11110902]
[1758745588084,0.001,4170.4,4170.3,20.87790902]
[1758745593319,0.001,4170.4,4170.3,6.37790902]
[1758745593795,0.001,4170.4,4170.3,20.87790902]
[1758745596840,0.001,4170.4,4170.3,6.37790902]
[1758745597294,0.001,4170.4,4170.3,20.87790902]
[1758745600243,0.001,4170.4,4170.3,6.37790902]
[1758745600745,0.001,4170.4,4170.3,20.87790902]
[1758745603139,0.001,4170.4,4170.3,21.11230902]
[1758745603860,0.001,4170.4,4170.3,6.61230902]
[1758745604446,0.001,4170.4,4170.3,21.11230902]
[1758745605749,0.001,4170.4,4170.3,20.87790902]
[1758745606244,0.001,4170.4,4170.3,21.58070902]
[1758745606545,0.001,4170.4,4170.3,20.87790902]
[1758745606852,0.001,4170.4,4170.3,21.58070902]
[1758745607343,0.001,4170.4,4170.3,7.08070902]
[1758745607913,0.001,4170.4,4170.3,21.58070902]
[1758745610752,0.001,4170.4,4170.3,21.11230902]
[1758745611065,0.001,4170.4,4170.3,20.87790902]
[1758745613353,0.001,4170.4,4170.3,21.11230902]
[1758745613938,0.001,4170.4,4170.3,24.76399517]
[1758745614260,0.001,4170.4,4170.3,24.88319517]
[1758745624094,0.001,4170.4,4170.3,26.88119517]
[1758745624580,0.001,4170.4,4170.3,26.76199517]
[1758745626778,0.001,4170.4,4170.3,24.76299517]
[1758745626982,0.001,4170.4,4170.3,26.76099517]
[1758745628892,0.001,4170.9,4170.8,3.18962155]
[1758745629059,0.001,4170.9,4170.8,7.7513295]
[1758745629260,0.001,4170.9,4170.8,8.42405329]
[1758745629461,0.001,4170.9,4170.8,22.92405329]
[1758745630760,0.001,4170.9,4170.8,18.94505329]
[1758745630962,0.001,4170.9,4170.8,22.92405329]
[1758745634474,0.001,4170.9,4170.8,23.04325329]
[1758745639375,0.001,4170.9,4170.8,18.36755329]
[1758745639709,0.001,4170.9,4170.8,22.34655329]
[1758745641394,0.001,4170.9,4170.8,21.78682155]
[1758745641598,0.001,4170.9,4170.8,18.5972]
[1758745641599,0.003,4170.9,4170.8,18.5972]
[1758745641784,0.1031,4170.9,4170.8,18.478]
[1758745642183,0.1031,4170.9,4170.8,20.87562155]
[1758745646279,0.37893056,4170.9,4170.8,6.37662155]
[1758745646479,0.37893056,4170.9,4170.8,3.979]
[1758745646803,0.47903056,4170.9,4170.8,18.479]
[1758745646999,0.47903056,4170.9,4170.8,20.87662155]
[1758745647810,0.47903056,4170.9,4170.8,14.5]
[1758745648010,0.47903056,4170.9,4170.6,3.979]
[1758745648310,0.1021,4170.8,4170.7,2.39767686]
[1758745648475,0.1021,4170.8,4170.7,16.89767686]
[1758745649116,0.1021,4170.8,4170.6,3.979]
[1758745649297,9.49992409,4170.7,4170.6,3.979]
[1758745649497,9.60202409,4170.7,4170.6,3.979]
[1758745649698,9.50192409,4170.7,4170.5,2.39778665]
[1758745649904,0.1001,4170.6,4170.5,6.37678665]
[1758745650210,0.1021,4170.6,4170.5,6.37678665]
[1758745650511,0.1021,4170.6,4170.5,2.39779402]
[1758745650512,0.002,4170.6,4170.5,2.39779402]
[1758745650828,3.1021,4170.6,4170.1,14.502]
[1758745650988,9.49992409,4170.2,4170.1,18.481]
[1758745651211,9.50192409,4170.2,4170.1,14.502]
[1758745651912,9.49992409,4170.2,4170.1,14.502]
[1758745652127,9.60202409,4170.2,4170.1,14.502]
[1758745653441,9.50192409,4170.2,4170.1,14.502]
[1758745653738,9.60202409,4170.2,4170.1,14.502]
[1758745654954,9.49992409,4170.2,4170.1,16.90002402]
[1758745655605,9.49992409,4170.2,4170.1,0.002]
[1758745655606,12.49992409,4170.2,4170.1,0.002]
[1758745655825,3.0,4170.1,4169.9,0.002]
[1758745656025,3.1192,4169.9,4169.8,0.002]
[1758745656458,5.51933904,4169.9,4169.8,0.002]
[1758745656748,2.39831158,4169.6,4169.1,0.02]
[1758745657036,5.3983691,4169.5,4169.1,0.02]
[1758745657254,0.1192,4169.4,4168.8,0.002]
[1758745657451,3.1192,4168.8,4168.1,0.02]
[1758745657637,12.49992409,4168.2,4168.1,0.02]
[1758745657838,16.48092409,4168.2,4168.1,0.02]
[1758745658156,16.58302409,4168.2,4168.1,0.02]
[1758745658551,16.95924666,4168.2,4168.1,0.02]
[1758745660136,17.07825951,4168.2,4168.1,0.02]
[1758745662131,16.70203694,4168.2,4168.1,0.02]
[1758745662347,16.60193694,4168.2,4168.1,0.02]
[1758745662645,16.59993694,4168.2,4168.1,0.02]
[1758745663812,16.48092409,4168.2,4168.1,0.02]
[1758745665810,16.48092409,4168.2,4168.1,2.41917468]
[1758745666036,16.48092409,4168.2,4168.1,0.02]
[1758745666243,16.85713899,4168.2,4168.1,0.02]
[1758745669615,12.87613899,4168.2,4168.1,0.02]
[1758745669809,16.85713899,4168.2,4168.1,0.02]
[1758745670353,16.85713899,4168.2,4168.1,2.41917468]
[1758745671224,3.3762149,4168.2,4168.1,2.41917468]
[1758745671424,3.1192,4168.2,4168.1,3.11237468]
[1758745672354,12.61912409,4168.2,4168.1,3.11237468]
[1758745672722,12.61912409,4168.2,4168.1,0.02]
[1758745673049,12.61912409,4168.2,4168.1,0.022]
[1758745673629,12.61912409,4168.2,4168.1,0.4789]
[1758745673831,12.61912409,4168.2,4168.1,0.2583]
[1758745674065,12.61912409,4168.2,4168.1,2.65747468]
[1758745674548,12.61912409,4168.2,4168.1,0.2583]
[1758745674748,12.61912409,4168.2,4168.1,0.022]
[1758745675734,12.61912409,4168.2,4168.1,2.42117468]
[1758745675940,12.61912409,4168.2,4168.1,0.022]
[1758745676541,12.61912409,4168.2,4168.1,2.42117468]
[1758745677662,12.61912409,4168.2,4168.1,0.022]
[1758745678338,12.61912409,4168.2,4168.1,2.42117468]
[1758745678539,12.99531179,4168.2,4168.1,2.42117468]
[1758745678939,12.99531179,4168.2,4168.1,3.11437468]
[1758745679138,16.97831179,4168.2,4168.1,3.11437468]
[1758745681678,16.97831179,4168.2,4168.1,17.61437468]
[1758745681971,12.99531179,4168.2,4168.1,17.61437468]
[1758745682177,16.97831179,4168.2,4168.1,17.61437468]
[1758745683274,16.97831179,4168.2,4168.1,15.2152]
[1758745683642,16.97831179,4168.2,4168.1,17.61437468]
[1758745684695,15.69845036,4168.2,4168.1,17.61437468]
[1758745686464,15.57925036,4168.2,4168.1,17.61617468]
[1758745686850,15.57925036,4168.2,4168.1,3.11617468]
[1758745687245,15.57925036,4168.2,4168.1,17.61617468]
[1758745687659,15.57925036,4168.2,4168.1,17.15927468]
[1758745688253,11.59625036,4168.2,4168.1,16.92117468]
[1758745688465,15.57825036,4168.2,4168.1,16.92117468]
[1758745689706,15.57825036,4168.2,4168.1,14.522]
[1758745689872,15.57825036,4168.2,4168.1,16.92117468]
[1758745690073,15.57825036,4168.2,4168.1,17.61257468]
[1758745690294,7.3581877,4168.2,4168.1,17.61257468]
[1758745690866,0.001,4168.3,4168.1,3.11257468]
[1758745691070,0.001,4168.3,4168.2,3.09051712]
[1758745691394,0.001,4168.3,4168.2,17.59051712]
[1758745692674,0.001,4168.3,4168.2,18.38251712]
[1758745692907,0.001,4168.3,4168.2,18.50171712]
[1758745694707,0.001,4168.3,4168.2,18.48811712]
[1758745698322,0.37716427,4168.3,4168.2,18.48811712]
[1758745699222,0.37716427,4168.3,4168.2,24.86140327]
[1758745699423,0.001,4168.3,4168.2,24.86140327]
[1758745700420,0.001,4168.3,4168.2,24.18360327]
[1758745700722,0.001,4168.3,4168.2,24.86140327]
[1758745712948,0.001,4168.3,4168.2,24.86040327]
[1758745715314,0.001,4168.3,4168.2,22.46911712]
[1758745731282,0.001,4168.3,4168.2,21.79131712]
[1758745731580,0.001,4168.3,4168.2,22.02371712]
[1758745731783,0.001,4168.3,4168.2,22.49131712]
[1758745732233,0.001,4168.3,4168.2,17.81031712]
[1758745732428,0.001,4168.3,4168.2,23.8146663]
[1758745732670,0.001,4168.3,4168.2,24.0470663]
[1758745733084,0.001,4168.3,4168.2,24.5146663]
[1758745734482,0.001,4168.3,4168.2,23.8146663]
[1758745736304,0.001,4168.3,4168.2,24.5146663]
[1758745745699,0.001,4168.3,4168.2,24.3954663]
[1758745745895,0.001,4168.3,4168.2,24.5146663]
[1758745758992,0.001,4168.3,4168.2,23.8146663]
[1758745759643,0.001,4168.3,4168.2,23.9157663]
[1758745761111,0.001,4168.3,4168.2,17.91141712]
[1758745761292,0.001,4168.3,4168.2,17.01831712]
[1758745761468,0.1031,4168.3,4168.2,20.99831712]
[1758745761809,0.1031,4168.3,4168.2,21.79031712]
[1758745761978,0.001,4168.3,4168.2,17.01831712]
[1758745762298,0.1031,4168.3,4168.2,14.5]
[1758745762801,0.82461547,4168.3,4168.2,14.5]
[1758745763099,0.82461547,4168.3,4168.1,0.022]
[1758745763303,0.002,4168.2,4167.9,0.002]
[1758745763506,9.50526385,4168.0,4167.9,0.002]
[1758745763709,12.60736385,4168.0,4167.9,0.002]
[1758745766702,12.98357639,4168.0,4167.9,0.002]
[1758745767212,12.98357639,4168.0,4167.6,0.002]
[1758745767725,15.38280946,4168.0,4167.6,0.002]
[1758745768127,3.0,4167.9,4167.3,0.002]
[1758745768338,9.50526385,4167.4,4167.3,0.002]
[1758745768697,9.60736385,4167.4,4167.3,0.002]
[1758745769030,9.60736385,4167.4,4167.3,2.40163525]
[1758745769229,9.60736385,4167.4,4167.3,0.002]
[1758745769718,9.60736385,4167.4,4167.3,2.40163525]
[1758745771831,9.50526385,4167.4,4167.3,2.40163525]
[1758745772035,9.72656385,4167.4,4167.3,2.40163525]
[1758745774933,9.62646385,4167.4,4167.3,2.40163525]
[1758745775858,9.62446385,4167.4,4167.3,2.40163525]
[1758745786673,9.62446385,4167.4,4167.3,0.002]
[1758745786973,9.62446385,4167.4,4167.3,2.40163525]
[1758745787638,10.00071657,4167.4,4167.3,2.40163525]
[1758745795098,0.001,4167.6,4167.5,2.39952009]
[1758745795306,0.001,4167.6,4167.5,3.10622009]
[1758745795664,0.001,4167.6,4167.5,17.60622009]
[1758745796167,0.001,4167.6,4167.5,21.58822009]
[1758745798615,0.001,4167.6,4167.5,7.08822009]
[1758745799121,0.001,4167.6,4167.5,21.58822009]
[1758745802200,0.001,4167.6,4167.5,7.08822009]
[1758745802624,0.001,4167.6,4167.5,21.58822009]
[1758745804137,3.983,4167.6,4167.3,0.002]
[1758745804316,9.50526385,4167.4,4167.3,0.002]
[1758745804832,9.60736385,4167.4,4167.3,0.002]
[1758745806737,8.32750863,4167.4,4167.3,0.002]
[1758745807721,8.22740863,4167.4,4167.3,0.002]
[1758745808139,8.60166664,4167.4,4167.3,0.002]
[1758745808310,12.58566664,4167.4,4167.3,0.002]
[1758745809422,12.58366664,4167.4,4167.3,0.002]
[1758745810019,12.58366664,4167.4,4166.9,0.2296]
[1758745810020,23.91117527,4167.4,4166.8,0.002]
[1758745810345,3.0,4166.8,4166.1,0.02]
[1758745810548,3.0,4166.1,4165.1,0.7162]
[1758745810857,3.0,4166.1,4165.2,16.90083293]
[1758745810858,3.983,4166.0,4165.2,16.90083293]
[1758745811040,3.0,4165.9,4165.2,14.5]
[1758745811222,11.22540863,4165.7,4165.2,14.5]
[1758745811548,11.22540863,4165.7,4165.2,14.7296]
[1758745811842,11.22540863,4165.7,4165.2,14.5]
[1758745812044,11.22740863,4165.7,4165.1,0.02]
[1758745812252,3.0,4165.6,4165.1,0.02]
[1758745812423,16.45081726,4165.2,4164.6,2.40118526]
[1758745812752,16.45081726,4165.2,4164.6,14.7484]
[1758745812753,8.22540863,4164.7,4164.6,14.7484]
[1758745812981,8.22540863,4164.7,4164.6,17.14959099]
[1758745813339,8.22540863,4164.7,4164.6,17.61359099]
[1758745814274,0.72210421,4164.8,4164.7,2.40113333]
[1758745814653,8.22540863,4164.9,4164.8,2.40107568]
[1758745814869,8.22540863,4164.9,4164.8,3.11347568]
[1758745815677,8.94745549,4165.1,4165.0,2.40096038]
[1758745816054,8.94745549,4165.1,4165.0,3.11336038]
[1758745816248,8.22540863,4165.1,4165.0,3.11336038]
[1758745816463,8.22540863,4165.1,4165.0,17.61336038]
[1758745819446,8.22540863,4165.1,4165.0,3.11336038]
[1758745819964,8.22540863,4165.1,4165.0,17.61336038]
[1758745821106,8.22540863,4165.6,4165.5,2.40067218]
[1758745821308,8.22540863,4165.6,4165.5,3.11307218]
[1758745822714,8.22540863,4165.6,4165.5,4.02507218]
[1758745822914,8.22540863,4165.6,4165.5,3.44175238]
[1758745823084,8.22540863,4165.6,4165.5,2.40067218]
[1758745823687,8.22540863,4165.6,4165.5,2.64907218]
[1758745823920,0.1228308,4167.0,4166.7,2.39993985]
[1758745824079,11.22540863,4166.8,4166.6,2.40002322]
[1758745824286,12.21040863,4166.7,4166.6,2.40002322]
[1758745824705,20.43781726,4166.7,4166.6,2.40002322]
[1758745824919,3.0,4166.6,4166.0,2.40038406]
[1758745825127,8.34540863,4166.3,4165.7,14.7484]
[1758745825316,8.22540863,4165.8,4165.7,17.14895692]
[1758745825484,8.22540863,4165.8,4165.7,17.61295692]
[1758745833518,3.985,4166.0,4165.9,2.40044168]
[1758745834037,3.985,4166.0,4165.9,2.64884168]
[1758745834242,3.985,4166.0,4165.9,17.14884168]
[1758745835326,12.5857964,4166.1,4166.0,2.40038406]
[1758745839338,12.6878964,4166.1,4166.0,2.40038406]
[1758745839538,12.5857964,4166.1,4165.9,2.40044019]
[1758745839780,0.2221,4166.0,4165.8,2.40045954]
[1758745839982,12.21040863,4165.9,4165.8,2.40045954]
[1758745840450,12.20840863,4165.9,4165.8,2.40045954]
[1758745840871,12.20840863,4165.9,4165.5,3.983]
[1758745841086,3.983,4165.9,4165.7,2.40055692]
[1758745841241,3.983,4165.9,4165.8,2.4004993]
[1758745842178,12.20840863,4165.9,4165.8,2.4004993]
[1758745845791,8.22540863,4165.9,4165.8,2.4004993]
[1758745846002,12.20840863,4165.9,4165.8,2.4004993]
[1758745846296,12.21166029,4165.9,4165.5,16.90065569]
[1758745846502,3.983,4165.9,4165.6,2.40056573]
[1758745846719,8.22866029,4165.7,4165.3,0.002]
[1758745846987,8.34866029,4165.4,4165.3,2.40278083]
[1758745847600,12.70810476,4165.4,4165.3,2.40278083]
[1758745848047,12.70810476,4165.4,4165.3,0.002]
[1758745848383,12.70810476,4165.4,4165.3,2.40278745]
[1758745848987,12.70810476,4165.4,4165.3,0.002]
[1758745849162,12.70810476,4165.4,4165.3,2.40278745]
[1758745850283,0.49644447,4165.4,4165.3,2.40278745]
[1758745850496,0.49644447,4165.4,4165.3,3.10008745]
[1758745851472,0.49644447,4165.4,4165.3,0.002]
[1758745852781,0.49644447,4165.4,4165.3,2.40278745]
[1758745856120,0.49644447,4165.4,4165.3,0.002]
[1758745859721,0.49644447,4165.4,4165.3,2.40278745]
[1758745860514,0.49644447,4165.4,4165.3,0.002]
[1758745862431,4.48044447,4165.4,4165.3,0.002]
[1758745862791,4.48244447,4165.4,4165.3,0.002]
[1758745863028,4.48044447,4165.4,4165.3,0.002]
[1758745864917,4.48044447,4165.4,4165.3,2.40278745]
[1758745864918,0.49644447,4165.4,4165.3,2.40278745]
[1758745865146,0.49644447,4165.4,4165.3,3.12018745]
[1758745867446,0.49644447,4165.4,4165.3,17.62018745]
[1758745868838,0.49644447,4165.4,4165.3,21.60418745]
[1758745869039,0.49644447,4165.4,4165.3,23.9954736]
[1758745869473,0.37644447,4165.4,4165.3,23.9954736]
[1758745869645,0.001,4165.7,4165.6,2.40061455]
[1758745869844,0.37743018,4165.7,4165.6,6.38461455]
[1758745870177,0.37743018,4165.7,4165.6,7.10201455]
[1758745870943,0.37743018,4165.7,4165.6,21.60201455]
[1758745872470,0.37743018,4165.7,4165.6,23.9933007]
[1758745873969,0.37743018,4165.7,4165.6,9.4933007]
[1758745874170,0.37743018,4165.7,4165.6,7.10201455]
[1758745874357,0.37743018,4165.7,4165.6,21.60201455]
[1758745879575,0.37743018,4165.7,4165.3,2.39328615]
[1758745879900,0.37743018,4165.7,4165.6,2.40061455]
[1758745880106,0.37743018,4165.7,4165.6,6.38461455]
[1758745882724,0.37743018,4165.7,4165.6,3.984]
[1758745884425,0.37743018,4165.7,4165.4,3.07971049]
[1758745884426,0.37743018,4165.7,4165.5,6.38463135]
[1758745884616,0.37743018,4165.7,4165.5,3.984]
[1758745885301,0.37743018,4165.7,4165.5,4.2192]
[1758745885501,0.37743018,4165.7,4165.5,6.61984909]
[1758745885704,0.37743018,4165.7,4165.6,2.40061455]
[1758745886023,0.37743018,4165.7,4165.5,4.663]
[1758745886630,0.37743018,4165.7,4165.5,7.06366605]
[1758745886831,0.37743018,4165.7,4165.6,2.40061455]
[1758745887530,0.37743018,4165.7,4165.6,2.63581455]
[1758745887933,0.37743018,4165.7,4165.6,2.40061455]
[1758745888232,0.37743018,4165.7,4165.6,0.679]
[1758745888742,0.37743018,4165.7,4165.5,3.984]
[1758745888946,0.37743018,4165.7,4165.5,7.06364902]
[1758745889330,0.37743018,4165.7,4165.3,2.402737]
[1758745889633,0.37743018,4165.7,4165.3,3.985]
[1758745889845,0.12,4165.5,4165.3,3.985]
[1758745890008,0.12,4165.5,4165.3,0.002]
[1758745890521,0.12,4165.5,4165.3,2.40278206]
[1758745890701,0.12,4165.5,4165.3,0.002]